bitfinex/quotes_SOLUSD_20250912
["timestamp","ask_amount","ask_price","bid_price","bid_amount"]
[1757639943636,4.02065632,232.79,232.71,0.72]
[1757639944220,26.0,232.85,232.71,0.72]
[1757639944529,13.59559401,232.8,232.71,0.72]
[1757639944732,13.59559401,232.8,232.72,34.58]
[1757639944935,4.02065632,232.84,232.73,0.72]
[1757639945231,13.59559401,232.82,232.73,0.72]
[1757639945538,13.59559401,232.82,232.74,34.58]
[1757639945712,30.02065632,232.84,232.74,34.58]
[1757639945713,13.59559401,232.83,232.75,0.72]
[1757639946113,13.59559401,232.84,232.75,0.72]
[1757639946521,13.59559401,232.85,232.75,0.72]
[1757639946721,17.61625033,232.85,232.75,0.72]
[1757639946939,17.61625033,232.85,232.76,34.58]
[1757639947225,17.61625033,232.85,232.77,0.72]
[1757639947837,13.59559401,232.82,232.78,24.1]
[1757639948033,13.59559401,232.82,232.78,24.82]
[1757639948212,13.59559401,232.84,232.79,35.3]
[1757639948412,13.59559401,232.85,232.8,0.72]
[1757639948609,13.59559401,232.85,232.81,0.72]
[1757639948832,13.59559401,232.85,232.82,19.46]
[1757639949426,0.66,232.95,232.83,0.72]
[1757639949623,4.02065632,232.95,232.83,0.72]
[1757639949937,3.17792947,232.98,232.83,0.72]
[1757639949938,4.02065632,232.98,232.83,0.72]
[1757639950237,12.78646955,232.99,232.84,34.58]
[1757639950238,13.59559401,232.93,232.84,34.58]
[1757639950440,13.59559401,232.93,232.85,0.72]
[1757639950615,13.59559401,232.93,232.86,34.58]
[1757639950814,13.59559401,232.93,232.87,0.72]
[1757639951019,13.59559401,232.91,232.87,0.72]
[1757639951446,13.59559401,232.91,232.88,35.3]
[1757639951619,13.59559401,232.91,232.89,35.3]
[1757639951819,39.59559401,232.96,232.9,0.72]
[1757639952036,3.17760893,232.95,232.9,0.72]
[1757639952237,13.59559401,232.96,232.91,0.72]
[1757639952451,13.59559401,232.96,232.92,0.72]
[1757639952613,13.59559401,232.96,232.93,34.58]
[1757639952820,39.59559401,232.96,232.93,34.58]
[1757639953325,13.59559401,232.98,232.93,34.58]
[1757639953520,13.59559401,232.96,232.93,35.3]
[1757639954540,39.59559401,232.97,232.93,35.3]
[1757639954930,39.59559401,232.97,232.94,34.56]
[1757639955745,39.59559401,232.97,232.92,0.72]
[1757639956050,39.59559401,232.97,232.93,0.72]
[1757639956242,39.59559401,232.97,232.94,34.56]
[1757639956545,39.59559401,232.97,232.93,0.72]
[1757639956855,4.02065632,232.96,232.93,34.56]
[1757639957018,4.02065632,232.96,232.91,0.72]
[1757639957219,4.02065632,232.96,232.84,26.0]
[1757639957220,13.59559401,232.94,232.92,34.56]
[1757639957423,13.59559401,232.95,232.92,34.56]
[1757639958320,13.59559401,232.95,232.93,34.56]
[1757639958717,13.59559401,232.95,232.94,34.56]
[1757639958920,13.59559401,232.95,232.89,0.72]
[1757639959145,13.59559401,232.95,232.9,34.56]
[1757639959343,13.59559401,232.96,232.91,0.72]
[1757639959538,13.59559401,232.96,232.92,34.56]
[1757639959746,13.59559401,232.96,232.92,35.28]
[1757639959945,13.59559401,232.96,232.92,34.56]
[1757639960252,13.59559401,232.96,232.93,35.28]
[1757639960554,13.59559401,232.96,232.94,34.56]
[1757639961346,26.0,232.97,232.95,0.72]
[1757639961838,39.59559401,232.97,232.96,34.54]
[1757639965128,39.59559401,232.97,232.85,26.0]
[1757639965331,39.59559401,232.97,232.86,0.7]
[1757639965543,39.59559401,232.97,232.86,35.24]
[1757639965738,0.03,233.02,232.87,0.7]
[1757639965934,26.0,233.01,232.87,132.8]
[1757639966150,13.59559401,232.98,232.88,0.7]
[1757639966536,26.0,233.01,232.88,0.7]
[1757639966537,13.59559401,233.0,232.9,26.0]
[1757639966745,13.59559401,233.0,232.91,0.7]
[1757639967340,13.59559401,233.0,232.92,34.54]
[1757639967539,13.59559401,233.0,232.93,0.7]
[1757639968253,0.03,233.02,232.94,34.54]
[1757639968459,0.03,233.02,232.95,0.7]
[1757639969051,0.03,233.02,232.95,132.8]
[1757639969257,0.03,233.02,232.96,0.7]
[1757639969929,0.03,233.02,232.98,26.0]
[1757639970149,0.03,233.02,232.99,26.7]
[1757639970360,0.03,233.02,233.0,0.7]
[1757639970532,0.03,233.02,233.01,34.52]
[1757639970933,0.03,233.02,233.01,35.22]
[1757639972337,0.03,233.02,233.01,0.7]
[1757639972535,0.03,233.02,233.01,35.22]
[1757639973740,0.03,233.02,233.01,167.32]
[1757639974957,0.03,233.02,233.01,35.22]
[1757639975158,0.03,233.02,233.01,35.64916613]
[1757639975334,0.03,233.02,233.01,35.22]
[1757639975536,0.03,233.02,233.01,0.7]
[1757639975735,0.03,233.02,233.01,35.22]
[1757639975974,0.03,233.02,233.01,167.32]
[1757639976342,0.03,233.02,233.01,180.89559401]
[1757639976565,0.03,233.02,233.01,151.54870176]
[1757639976865,0.03,233.02,233.01,206.04870176]
[1757639978948,0.03,233.02,233.01,171.54870176]
[1757639979469,0.03,233.02,233.01,206.04870176]
[1757639979666,0.03,233.02,233.01,171.54870176]
[1757639979849,0.03,233.02,233.01,206.04870176]
[1757639981248,0.03,233.02,233.01,206.02870176]
[1757639981662,0.03,233.02,233.01,73.92870176]
[1757639982063,0.03,233.07,233.05,132.01]
[1757639982368,0.03,233.07,233.06,34.90907405]
[1757639982546,0.03,233.07,233.06,167.61907405]
[1757639982872,0.03,233.07,233.06,167.19]
[1757639983469,0.03,233.07,233.06,132.71]
[1757639983765,0.03,233.07,233.06,167.19]
[1757639984671,0.03,233.07,233.06,180.78559401]
[1757639985062,0.03,233.1,233.06,48.77559401]
[1757639985265,0.03,233.1,233.09,26.0]
[1757639985571,0.03,233.1,233.09,60.48]
[1757639985881,0.03,233.1,233.09,61.18]
[1757639986067,0.03,233.1,233.09,0.7]
[1757639986570,0.03,233.1,233.09,35.18]
[1757639986971,0.03,233.1,233.09,35.16]
[1757639987466,0.03,233.1,233.09,0.7]
[1757639987677,0.03,233.1,233.09,35.16]
[1757639988177,0.03,233.1,233.09,0.7]
[1757639988392,0.03,233.1,233.05,33.59559401]
[1757639988393,3.28105137,233.1,232.85,12.86]
[1757639988555,13.59559401,233.05,232.89,2.41625942]
[1757639988753,2.57105137,233.02,232.89,2.41625942]
[1757639988968,0.68,233.01,232.9,31.04]
[1757639989249,0.68,233.0,232.88,12.87249791]
[1757639989462,0.68,232.99,232.86,0.7]
[1757639989670,0.68,232.99,232.87,52.72]
[1757639989987,26.0,233.05,232.87,52.72]
[1757639989988,0.68,232.98,232.88,0.7]
[1757639992168,0.68,232.98,232.89,34.46]
[1757639992370,0.68,232.98,232.92,26.0]
[1757639992576,0.68,232.98,232.93,34.46]
[1757639992973,0.68,233.01,232.93,35.16]
[1757639993490,0.68,233.01,232.94,34.46]
[1757639993682,10.75433647,233.12,232.98,26.0]
[1757639993868,13.59559401,233.04,232.93,26.0]
[1757639994196,13.59559401,233.02,232.94,34.46]
[1757639994363,0.68,233.01,232.94,34.46]
[1757639995489,0.68,233.0,232.95,34.46]
[1757639995693,0.68,232.99,232.96,34.46]
[1757639995866,0.68,232.98,232.97,34.46]
[1757639996405,3.17512148,233.02,232.9,26.0]
[1757639996580,13.59559401,232.97,232.87,0.12]
[1757639996895,3.85512148,232.96,232.88,34.46]
[1757639997100,0.68,232.95,232.88,34.46]
[1757639997604,0.68,232.95,232.88,35.17]
[1757639997771,0.68,232.95,232.88,0.71]
[1757639997975,0.68,232.95,232.89,34.48]
[1757639998479,0.68,232.95,232.9,34.48]
[1757639998686,0.68,232.94,232.9,34.48]
[1757639999206,0.68,232.93,232.87,0.12]
[1757639999369,26.45559401,232.88,232.84,0.12]
[1757639999686,13.59559401,232.76,232.71,0.26]
[1757639999993,16.45810436,232.76,232.71,0.26]
[1757640000293,3.6707611,232.75,232.65,0.71]
[1757640000590,13.59559401,232.72,232.68,20.48]
[1757640000903,0.49,232.72,232.68,20.48]
[1757640001061,0.49,232.77,232.68,20.48]
[1757640001271,13.59559401,232.77,232.69,0.71]
[1757640001893,39.59559401,232.78,232.68,20.48]
[1757640002087,13.59559401,232.75,232.69,35.04]
[1757640002394,13.59559401,232.75,232.7,35.02]
[1757640002571,3.57783661,232.85,232.7,35.02]
[1757640002572,13.59559401,232.77,232.7,35.02]
[1757640003197,0.49,232.78,232.7,35.02]
[1757640004793,13.59559401,232.77,232.7,35.02]
[1757640005691,26.0,232.78,232.71,0.71]
[1757640005865,13.59559401,232.89,232.71,0.71]
[1757640006072,13.59559401,232.83,232.71,0.71]
[1757640006289,13.59559401,232.83,232.73,26.0]
[1757640006486,13.59559401,232.83,232.73,26.71]
[1757640006892,13.59559401,232.83,232.74,0.71]
[1757640007287,13.59559401,232.81,232.74,0.71]
[1757640008797,13.59559401,232.81,232.67,0.1]
[1757640008798,26.0,232.68,232.67,0.1]
[1757640008997,13.59559401,232.63,232.61,22.749359]
[1757640009174,20.11672593,232.62,232.61,22.749359]
[1757640009373,20.50672593,232.62,232.61,22.749359]
[1757640009573,39.59559401,232.69,232.61,22.749359]
[1757640009778,39.59559401,232.69,232.62,35.22]
[1757640009974,13.59559401,232.67,232.62,35.22]
[1757640010696,6.52113192,232.66,232.65,0.12]
[1757640011502,13.59559401,232.67,232.65,0.12]
[1757640012676,26.0,232.69,232.65,0.12]
[1757640012677,13.59559401,232.68,232.65,0.12]
[1757640013199,13.59559401,232.65,232.63,0.12]
[1757640013384,39.59559401,232.63,232.61,22.749359]
[1757640013580,20.11672593,232.62,232.61,22.749359]
[1757640014502,13.59559401,232.62,232.61,58.349359]
[1757640014693,20.11672593,232.62,232.61,58.349359]
[1757640015999,13.59559401,232.65,232.61,58.349359]
[1757640017512,26.0,232.7,232.62,0.71]
[1757640017513,13.59559401,232.67,232.62,0.71]
[1757640018091,20.11672593,232.69,232.62,0.71]
[1757640018489,13.59559401,232.69,232.62,0.71]
[1757640018989,0.27,232.78,232.62,0.71]
[1757640019200,13.59559401,232.74,232.62,0.71]
[1757640019394,39.59559401,232.74,232.62,0.71]
[1757640019609,13.59559401,232.7,232.62,0.71]
[1757640019818,13.59559401,232.7,232.63,35.52]
[1757640019986,13.59559401,232.73,232.63,35.52]
[1757640020193,6.52113192,232.72,232.64,0.71]
[1757640020385,6.52113192,232.72,232.65,35.5]
[1757640021706,13.59559401,232.73,232.65,35.5]
[1757640021909,20.11672593,232.73,232.65,35.5]
[1757640022307,13.59559401,232.73,232.66,35.46]
[1757640022502,20.11672593,232.73,232.66,35.46]
[1757640023898,20.11672593,232.73,232.67,35.42]
[1757640025015,13.59559401,232.68,232.61,22.749359]
[1757640025317,13.59559401,232.62,232.61,22.749359]
[1757640025617,26.0,232.73,232.61,58.849359]
[1757640025824,13.59559401,232.68,232.62,0.7]
[1757640026912,26.0,232.69,232.62,0.7]
[1757640027116,13.59559401,232.68,232.62,0.7]
[1757640029121,13.62559401,232.68,232.62,0.7]
[1757640030107,0.03,232.68,232.62,0.7]
[1757640031422,0.03,232.68,232.63,35.34]
[1757640031620,0.03,232.68,232.64,0.7]
[1757640032216,0.03,232.68,232.65,35.34]
[1757640032625,0.03,232.68,232.65,36.04]
[1757640033214,0.03,232.68,232.66,35.32]
[1757640034124,0.03,232.68,232.67,35.3]
[1757640034327,3.18715572,232.68,232.67,35.3]
[1757640034730,0.03,232.68,232.67,36.0]
[1757640034930,0.03,232.68,232.67,0.7]
[1757640035313,0.03,232.68,232.67,36.02]
[1757640036523,0.03,232.68,232.67,0.7]
[1757640036731,0.03,232.68,232.67,36.0]
[1757640037123,0.03,232.68,232.67,0.7]
[1757640037333,3.19810456,232.68,232.67,36.0]
[1757640037644,3.19810456,232.68,232.67,0.7]
[1757640037926,3.19810456,232.68,232.67,35.98]
[1757640040237,6.06179159,232.68,232.67,35.98]
[1757640041125,6.06218501,232.68,232.67,35.98]
[1757640041321,6.06218501,232.68,232.61,22.869359]
[1757640041528,2.86408045,232.67,232.62,0.7]
[1757640041840,0.03,232.68,232.63,35.2]
[1757640042026,0.03,232.68,232.64,35.9]
[1757640042027,2.86835353,232.67,232.64,35.9]
[1757640042334,2.86835353,232.66,232.65,0.7]
[1757640042537,0.03,232.68,232.65,0.7]
[1757640042715,0.03,232.68,232.67,26.0]
[1757640043141,0.03,232.68,232.67,26.7]
[1757640044036,0.03,232.68,232.67,158.8]
[1757640044939,3.58010057,232.81,232.72,26.0]
[1757640045141,6.07743119,232.8,232.73,35.86]
[1757640045442,6.07743119,232.79,232.74,0.7]
[1757640045738,6.07743119,232.78,232.75,0.7]
[1757640045926,2.87909625,232.77,232.75,0.7]
[1757640046121,26.0,232.83,232.76,0.7]
[1757640046320,6.07354608,232.82,232.77,35.14]
[1757640046529,6.07354608,232.81,232.77,35.84]
[1757640046722,6.07354608,232.8,232.77,35.84]
[1757640046935,6.07354608,232.79,232.77,35.14]
[1757640047234,2.8762887,232.82,232.78,0.7]
[1757640047436,0.03,232.84,232.78,0.7]
[1757640048035,2.87598166,232.83,232.78,0.7]
[1757640048233,0.03,232.84,232.79,35.1]
[1757640048638,0.03,232.84,232.8,0.7]
[1757640049136,0.03,232.8,232.79,35.1]
[1757640049345,0.03,232.8,232.79,35.8]
[1757640051244,0.03,232.8,232.79,35.78]
[1757640051745,0.03,232.8,232.79,167.85]
[1757640057648,0.03,232.84,232.79,167.85]
[1757640057835,0.03,232.87,232.84,132.01]
[1757640058031,0.03,232.87,232.85,34.92]
[1757640058239,0.03,232.87,232.85,35.58]
[1757640058545,0.3,232.87,232.84,132.01]
[1757640058736,0.03,232.87,232.86,34.9]
[1757640060448,10.08209316,232.87,232.86,34.9]
[1757640060653,0.03,232.87,232.86,34.9]
[1757640064039,0.3,232.87,232.86,34.88]
[1757640064430,0.03,232.87,232.86,34.88]
[1757640064949,0.03,232.87,232.86,35.54]
[1757640065248,0.03,232.87,232.86,167.55]
[1757640066138,0.03,232.87,232.86,35.54]
[1757640066534,0.03,232.87,232.86,0.66]
[1757640066742,0.03,232.87,232.86,35.5]
[1757640067126,0.03,232.87,232.86,0.66]
[1757640067326,0.03,232.87,232.86,35.5]
[1757640069354,0.03,232.87,232.86,0.66]
[1757640069653,0.03,232.87,232.86,35.46]
[1757640069954,0.03,232.87,232.86,0.66]
[1757640070150,0.03,232.87,232.86,35.46]
[1757640071660,0.03,232.87,232.86,167.47]
[1757640073932,0.03,232.89,232.87,131.98]
[1757640074133,0.03,232.89,232.88,34.74]
[1757640074459,0.03,232.89,232.88,167.38]
[1757640075360,0.03,232.89,232.88,167.34]
[1757640077553,0.03,232.89,232.88,167.32]
[1757640078469,0.03,232.89,232.88,167.3]
[1757640080561,0.03,232.89,232.88,132.64]
[1757640080772,0.03,232.89,232.88,167.26]
[1757640082859,0.03,232.9,232.89,131.95]
[1757640083057,0.03,232.9,232.89,132.61]
[1757640083257,0.03,232.9,232.89,131.95]
[1757640083564,0.03,232.9,232.89,132.61]
[1757640086170,0.03,232.9,232.89,0.66]
[1757640086338,0.03,232.9,232.89,35.28]
[1757640087151,0.03,232.9,232.89,167.23]
[1757640087663,1e-08,232.92,232.91,26.0]
[1757640087863,1e-08,232.92,232.91,60.62]
[1757640088171,1e-08,232.92,232.91,61.33]
[1757640088663,1e-08,232.92,232.91,84.81316511]
[1757640088964,1e-08,232.92,232.91,98.40875912]
[1757640089952,0.27,233.02,232.97,26.0]
[1757640090146,0.27,233.02,232.98,34.62]
[1757640090351,0.27,233.02,232.98,166.56999999]
[1757640091152,0.27,233.04,232.98,166.56999999]
[1757640091953,0.27,233.07,232.98,167.27999999]
[1757640093165,0.27,233.07,232.98,166.56999999]
[1757640093483,0.27,233.07,232.99,0.71]
[1757640093768,0.27,233.06,233.0,34.62]
[1757640094066,0.27,233.05,233.01,34.62]
[1757640094946,0.47,233.08,233.02,0.71]
[1757640095145,0.47,233.08,233.03,34.62]
[1757640095345,0.27,233.07,233.03,166.56999999]
[1757640095769,0.2,233.08,233.03,166.56999999]
[1757640095967,0.2,233.08,233.03,34.62]
[1757640096168,0.2,233.08,233.04,0.71]
[1757640096352,0.2,233.08,233.05,35.31]
[1757640096977,0.2,233.08,233.05,34.6]
[1757640097279,0.2,233.08,233.03,3.06842347]
[1757640097463,0.27,233.07,233.04,34.6]
[1757640097778,0.2,233.08,233.04,34.6]
[1757640098150,0.2,233.08,233.05,0.71]
[1757640098356,0.2,233.08,233.06,35.31]
[1757640098849,0.2,233.08,233.04,1.71559692]
[1757640099043,0.2,233.08,233.05,35.31]
[1757640100149,0.2,233.08,233.05,34.6]
[1757640100352,0.2,233.08,233.03,1.71559692]
[1757640100575,0.2,233.08,233.04,34.6]
[1757640101079,0.27,233.07,233.05,34.6]
[1757640101258,0.2,233.08,233.05,34.6]
[1757640101766,0.47,233.08,233.05,34.6]
[1757640101960,0.2,233.08,233.02,1.71574409]
[1757640102165,0.2,233.08,233.03,34.6]
[1757640102360,0.47,233.08,233.03,34.6]
[1757640103364,0.2,233.08,233.03,34.6]
[1757640103569,0.27,233.07,233.0,1.7158177]
[1757640103861,0.27,233.07,233.01,34.6]
[1757640104062,0.27,233.07,233.02,34.6]
[1757640104491,0.2,233.08,233.03,0.71]
[1757640105053,0.2,233.08,233.02,34.6]
[1757640105260,0.2,233.08,233.01,0.71]
[1757640105459,0.2,233.08,233.01,0.21]
[1757640105671,0.2,233.08,232.99,7.06010236]
[1757640105672,0.66,233.07,232.99,7.06010236]
[1757640106586,0.66,233.07,233.0,34.6]
[1757640106755,2.57024006,233.05,232.99,7.06010236]
[1757640106955,2.57024006,233.03,232.92,0.12]
[1757640107170,0.66,233.02,232.93,34.6]
[1757640107454,0.66,233.01,232.94,34.6]
[1757640107770,0.66,233.0,232.94,34.6]
[1757640107971,28.57024006,233.01,232.92,0.12]
[1757640108176,13.59559401,232.97,232.92,0.12]
[1757640108357,16.16583407,232.97,232.93,34.58]
[1757640108559,0.66,232.96,232.93,34.58]
[1757640108876,16.16583407,232.95,232.92,0.12]
[1757640109172,42.16583407,232.93,232.92,0.12]
[1757640109476,48.88667548,232.93,232.92,0.12]
[1757640110049,53.17981075,232.93,232.92,0.12]
[1757640111474,48.88667548,232.93,232.92,0.12]
[1757640111675,61.91545054,232.93,232.92,0.12]
[1757640111875,61.91441656,232.93,232.92,0.12]
[1757640118687,63.63200249,232.93,232.92,0.12]
[1757640120781,55.85460913,232.93,232.92,0.12]
[1757640120986,61.89658692,232.93,232.92,0.12]
[1757640121893,39.59559401,232.9,232.87,0.12]
[1757640122086,13.59559401,232.83,232.77,0.67]
[1757640122271,2.57024006,232.82,232.79,0.67]
[1757640122588,13.59559401,232.89,232.79,0.67]
[1757640123193,20.45985787,232.89,232.8,34.6]
[1757640123394,2.57024006,232.87,232.81,0.67]
[1757640123774,2.57024006,232.87,232.82,34.6]
[1757640124090,13.59559401,232.87,232.83,0.67]
[1757640124472,13.59559401,232.87,232.84,0.67]
[1757640124886,16.16583407,232.87,232.84,0.67]
[1757640125191,13.59559401,232.87,232.84,0.67]
[1757640126994,13.59559401,232.88,232.84,0.67]
[1757640127598,16.16583407,232.88,232.84,0.67]
[1757640127896,2.57024006,232.87,232.85,34.6]
[1757640128108,13.59559401,232.85,232.81,34.6]
[1757640128274,42.16583407,232.82,232.81,34.6]
[1757640129192,2.57024006,232.88,232.81,35.27]
[1757640129390,13.59559401,232.87,232.82,0.67]
[1757640129981,13.59559401,232.87,232.81,34.6]
[1757640130195,13.59559401,232.87,232.83,0.67]
[1757640130499,13.59559401,232.87,232.84,0.67]
[1757640131203,2.57024006,232.89,232.81,34.6]
[1757640131388,28.57024006,232.9,232.82,0.67]
[1757640131706,13.59559401,232.89,232.82,0.67]
[1757640132204,26.0,232.9,232.82,0.67]
[1757640132377,2.57024006,232.96,232.82,0.67]
[1757640132577,13.59559401,232.96,232.82,0.67]
[1757640132782,13.59559401,232.92,232.82,0.67]
[1757640133696,13.59559401,232.92,232.83,34.6]
[1757640133898,13.59559401,232.92,232.84,0.67]
[1757640134490,16.16583407,232.92,232.84,0.67]
[1757640135317,16.16583407,232.92,232.85,34.6]
[1757640135605,16.16583407,232.92,232.86,0.67]
[1757640136507,13.59559401,232.9,232.85,34.6]
[1757640136675,16.16583407,232.9,232.86,0.67]
[1757640136880,2.57024006,232.89,232.85,34.6]
[1757640137294,2.57024006,232.89,232.85,35.27]
[1757640137598,39.05193504,232.93,232.86,0.67]
[1757640137907,13.59559401,232.93,232.86,0.67]
[1757640138084,13.59559401,232.93,232.86,0.79]
[1757640138283,13.62559401,232.93,232.86,0.79]
[1757640138484,0.03,232.93,232.86,0.79]
[1757640138995,0.03,232.93,232.87,12.87581278]
[1757640139193,0.03,232.93,232.88,0.67]
[1757640139683,0.03,232.93,232.9,26.0]
[1757640139887,0.03,232.93,232.91,34.58]
[1757640140087,0.03,232.93,232.91,35.25]
[1757640140392,0.03,232.93,232.92,0.67]
[1757640143583,0.03,232.93,232.92,34.58]
[1757640143794,0.03,232.93,232.92,167.35]
[1757640146905,0.03,232.93,232.92,166.68]
[1757640147111,0.03,232.93,232.92,167.38]
[1757640147907,0.03,232.93,232.92,167.36]
[1757640150295,0.03,232.93,232.86,132.22]
[1757640150516,0.67,232.92,232.86,132.22]
[1757640150722,3.71158722,232.91,232.87,34.56]
[1757640150894,0.67,232.92,232.87,34.56]
[1757640152017,13.59559401,232.92,232.87,35.26]
[1757640152793,0.67,232.91,232.87,34.56]
[1757640153316,13.59559401,232.92,232.87,34.56]
[1757640153539,3.71158722,232.89,232.86,0.12]
[1757640153699,3.71158722,232.89,232.88,34.56]
[1757640154108,3.71158722,232.91,232.88,34.56]
[1757640155111,13.59559401,232.92,232.86,0.12]
[1757640155112,17.30718123,232.89,232.86,0.12]
[1757640155312,17.30718123,232.87,232.86,0.12]
[1757640155624,17.30718123,232.87,232.86,12.46]
[1757640156337,29.71158722,232.89,232.86,13.16]
[1757640156931,29.71158722,232.89,232.86,12.46]
[1757640158437,0.03,232.92,232.87,0.7]
[1757640160407,0.03,232.92,232.88,34.54]
[1757640160606,0.03,232.92,232.89,34.54]
[1757640161024,0.03,232.92,232.9,0.7]
[1757640161421,0.03,232.92,232.91,0.7]
[1757640162225,0.03,232.92,232.91,35.24]
[1757640164532,0.03,232.92,232.91,0.7]
[1757640164736,0.03,232.92,232.91,35.24]
[1757640166321,0.03,232.92,232.88,0.7]
[1757640166535,0.03,232.92,232.89,35.24]
[1757640167050,3.71158722,232.9,232.86,0.12]
[1757640167254,3.71158722,232.91,232.87,34.54]
[1757640167422,3.71158722,232.91,232.87,35.24]
[1757640167624,0.03,232.92,232.87,35.24]
[1757640167842,3.71158722,232.91,232.87,35.24]
[1757640168040,0.03,232.92,232.87,35.24]
[1757640168745,0.03,232.92,232.88,0.7]
[1757640169451,0.03,232.92,232.87,34.54]
[1757640169648,0.03,232.92,232.88,0.7]
[1757640170064,0.03,232.92,232.89,0.7]
[1757640170442,0.03,232.92,232.9,0.7]
[1757640171159,0.03,232.92,232.91,0.7]
[1757640176357,0.03,232.95,232.93,132.04]
[1757640176559,0.03,232.95,232.94,34.52]
[1757640177756,0.71,232.95,232.94,34.52]
[1757640178436,0.03,232.95,232.94,34.52]
[1757640180237,0.03,232.95,232.9,0.7]
[1757640180238,0.71,232.95,232.9,0.7]
[1757640180557,3.71158722,232.91,232.87,0.12]
[1757640180739,26.0,232.93,232.87,0.12]
[1757640180740,3.71158722,232.89,232.87,0.12]
[1757640180946,3.71158722,232.89,232.88,30.46]
[1757640181140,4.39158722,232.89,232.88,30.46]
[1757640181542,2.88017428,232.92,232.88,30.46]
[1757640181856,6.08024708,232.92,232.88,30.46]
[1757640182031,6.76024708,232.92,232.88,30.46]
[1757640182234,3.56017428,232.92,232.88,30.46]
[1757640183056,0.68,232.91,232.88,30.46]
[1757640183268,2.88017428,232.91,232.89,34.5]
[1757640183469,9.79223018,232.92,232.89,34.5]
[1757640183635,0.68,232.91,232.89,34.5]
[1757640183835,6.5917615,232.92,232.89,34.5]
[1757640184135,0.68,232.91,232.89,34.5]
[1757640184549,2.88017428,232.92,232.89,34.5]
[1757640184762,6.08002557,232.92,232.89,34.5]
[1757640185669,0.68,232.91,232.89,34.5]
[1757640186543,6.5917615,232.92,232.89,34.5]
[1757640186749,7.2717615,232.92,232.89,34.5]
[1757640187544,0.68,232.91,232.89,34.5]
[1757640187756,14.27559401,232.91,232.89,34.5]
[1757640188451,0.68,232.9,232.88,34.5]
[1757640188770,14.27559401,232.91,232.88,34.5]
[1757640189149,13.59559401,232.91,232.88,34.5]
[1757640189367,13.59559401,232.91,232.89,0.7]
[1757640189655,28.88017428,232.92,232.89,0.7]
[1757640189861,2.88017428,232.91,232.88,34.5]
[1757640190059,0.03,232.95,232.89,0.7]
[1757640190257,0.03,232.95,232.89,132.74]
[1757640190456,0.03,232.95,232.9,0.7]
[1757640190759,0.03,232.95,232.91,34.5]
[1757640190961,0.71,232.95,232.92,34.5]
[1757640191259,0.68,232.94,232.93,34.5]
[1757640191442,17.33718123,232.95,232.93,34.5]
[1757640191642,18.01718123,232.95,232.93,34.5]